fUSD/lending_fUSD_20240802
["ID","MTS","AMOUNT","RATE_DAILY","PERIOD"]
[333869415,1722583852578,-8347.74,0.00019178,2]
[333869416,1722583852588,-500.0,0.00019178,2]
[333869417,1722583852598,-500.0,0.00019178,2]
[333869418,1722583852607,-500.0,0.00019178,2]
[333869419,1722583852618,-500.0,0.00019178,2]
[333869420,1722583852629,-500.0,0.00019178,2]
[333869421,1722583852639,-546.78259646,0.00019178,2]
[333869422,1722583852648,-513.14,0.00019178,2]
[333869423,1722583852658,-500.0,0.00019178,2]
[333869424,1722583852669,-500.0,0.00019178,2]
[333869425,1722583852678,-1259.26,0.00019178,2]
[333869426,1722583852687,-9814.2,0.00019178,2]
[333869427,1722583852696,-1781.68,0.00019178,2]
[333869428,1722583852706,-1407.92,0.00019178,2]
[333869429,1722583852715,-500.0,0.00019178,2]
[333869430,1722583852725,-2552.12,0.00019178,2]
[333869431,1722583852735,-624.34,0.00019178,2]
[333869432,1722583852744,-500.0,0.00019178,2]
[333869433,1722583852753,-1906.02,0.00019178,2]
[333869434,1722583852763,-9683.84,0.00019178,2]
[333869435,1722583852772,-4145.93,0.00019178,2]
[333869436,1722583852782,-3905.08,0.00019178,2]
[333869437,1722583852792,-6494.9,0.00019178,2]
[333869438,1722583852801,-500.0,0.00019178,2]
[333869439,1722583852811,-12092.17,0.00019178,2]
[333869440,1722583852820,-500.0,0.00019178,2]
[333869441,1722583852830,-1311.21,0.00019178,2]
[333869442,1722583852841,-500.0,0.00019178,2]
[333869443,1722583852851,-7757.61,0.00019178,2]
[333869444,1722583852861,-1080.91,0.00019178,2]
[333869445,1722583852871,-2311.53,0.00019178,2]
[333869446,1722583852882,-1099.49,0.00019178,2]
[333869447,1722583852892,-500.0,0.00019178,2]
[333869448,1722583852903,-918.19,0.00019178,2]
[333869449,1722583852913,-500.0,0.00019178,2]
[333869450,1722583852922,-500.0,0.00019178,2]
[333869451,1722583852932,-1566.33,0.00019178,2]
[333869452,1722583852942,-1586.22,0.00019178,2]
[333869453,1722583852952,-555.95,0.00019178,2]
[333869454,1722583852962,-1896.22,0.00019178,2]
[333869455,1722583852972,-7419.76,0.00019178,2]
[333869456,1722583852982,-3692.08,0.00019178,2]
[333869457,1722583852991,-20535.55,0.00019178,2]
[333869458,1722583853001,-500.0,0.00019178,2]
[333869459,1722583853013,-13417.3164357,0.00019178,2]
[333869460,1722583854631,-1354.01034467,0.00019178,2]
[333869461,1722583854643,-1720.54323498,0.00019178,2]
[333869462,1722583854667,-641.85958326,0.00019178,2]
[333869463,1722583854678,-3490.2,0.00019178,2]
[333869464,1722583854890,-354.529975,0.00015664,2]
[333869465,1722583854902,-282.3849416,0.00015664,2]
[333869466,1722583854925,-163.53,0.00013973,2]
[333869467,1722583854936,-498.0850834,0.00015664,2]
[333869468,1722583854946,-414.42088347,0.00017898,2]
[333869469,1722583854956,-1135.0,0.00018664,2]
[333869470,1722583854966,-210.68434848,0.00018969,2]
[333869471,1722583854976,-657.13597105,0.00019176,2]
[333869472,1722583859028,200.0,0.00025439,120]
[333869535,1722584174523,800.0,0.00026986,120]
[333869537,1722584185806,1177.84056161,0.00027,120]
[333869556,1722584716781,800.0,0.00026986,120]
[333869561,1722584837153,800.0,0.00026986,120]
[333869563,1722584899684,160.0,0.00025821,120]
[333869566,1722585016117,800.0,0.00026986,120]
[333869578,1722585031744,-160.06,0.00013652,2]
[333869580,1722585031753,-779.88,0.00013973,2]
[333869582,1722585031763,-265.46,0.000143,2]
[333869583,1722585031774,-291.27,0.00015264,2]
[333869584,1722585031782,-554.33113365,0.00015584,2]
[333869585,1722585031793,-388.88750137,0.00015584,2]
[333869684,1722585038544,-2456.96590343,0.00013873,2]
[333869686,1722585038557,-11540.95596498,0.00015584,2]
[333869688,1722585038571,-999.686,0.00015685,2]
[333869690,1722585038584,-1370.0,0.00015685,2]
[333869693,1722585038597,-2993.26505,0.00016,2]
[333869695,1722585038609,-418.18,0.00016712,2]
[333869697,1722585038621,-1423.42,0.00016712,2]
[333869699,1722585038634,-718.13742074,0.00016999,2]
[333869702,1722585038646,-200.0,0.00017063,2]
[333869704,1722585038658,-1500.0,0.0001707,5]
[333869706,1722585038669,-250.0,0.00017096,2]
[333869708,1722585038682,-1000.0,0.00017157,2]
[333869710,1722585038694,-200.0,0.00017158,2]
[333869712,1722585038705,-2751.0,0.00017183,2]
[333869715,1722585038717,-160.0,0.00017214,2]
[333869717,1722585038728,-499.99,0.00017234,2]
[333869719,1722585038740,-8728.08,0.00017386,2]
[333869721,1722585038754,-347.59086137,0.00017399,2]
[333869723,1722585038766,-150.0,0.00017507,2]
[333869725,1722585038779,-291.27,0.00017528,2]
[333869728,1722585038791,-155.09632342,0.00017608,2]
[333869730,1722585038802,-454.49541237,0.00017636,2]
[333869732,1722585038815,-192.01025229,0.00017739,2]
[333869734,1722585038826,-150.0,0.00017785,2]
[333869736,1722585038837,-255.0,0.00017799,2]
[333869739,1722585038849,-535.42333167,0.00018,2]
[333869741,1722585038860,-150.0,0.00018063,2]
[333869743,1722585038872,-8728.08,0.00018255,2]
[333869745,1722585038883,-150.0,0.00018341,2]
[333869748,1722585038895,-500.0,0.0001844,2]
[333869750,1722585038906,-200.0,0.00018501,2]
[333869752,1722585038918,-370.21098026,0.00018599,2]
[333869754,1722585038929,-150.0,0.00018618,2]
[333869756,1722585038940,-150.0,0.00018896,2]
[333869758,1722585038951,-177.13303353,0.00018978,2]
[333869760,1722585038963,-7796.49354972,0.00018978,2]
[333869762,1722585038974,-13733.0,0.00018986,2]
[333869765,1722585038986,-3000.0,0.0001899,2]
[333869767,1722585038997,-1000.0,0.00019,2]
[333869769,1722585039008,-500.0,0.00019024,2]
[333869771,1722585039020,-2500.0,0.00019058,2]
[333869773,1722585039032,-330.24945769,0.00019068,2]
[333869776,1722585039043,-155.29271003,0.00019078,2]
[333869778,1722585039055,-762.80853612,0.00019078,2]
[333869780,1722585039067,-1000.0,0.00019078,2]
[333869782,1722585039079,-10000.0,0.00019078,2]
[333869784,1722585039090,-14140.1848,0.00019078,2]
[333869787,1722585039102,-86406.3951,0.00019078,2]
[333869789,1722585039114,-494.0,0.000191,2]
[333869791,1722585039126,-7796.49354972,0.00019119,2]
[333869793,1722585039138,-8728.08,0.00019125,2]
[333869795,1722585039148,-19154.5450842,0.00019158,2]
[333869797,1722585039160,-165.42600709,0.00019165,2]
[333869800,1722585039172,-191545.450842,0.00019168,2]
[333869802,1722585039183,-387951.300905,0.00019168,2]
[333869804,1722585039194,-150.0,0.00019174,2]
[333869806,1722585039205,-2973.81021162,0.00019177,2]
[333869808,1722585039217,-166.76886389,0.00019177,2]
[333869810,1722585039228,-451.20600904,0.00019177,2]
[333869812,1722585039240,-262.37737394,0.00019177,2]
[333869814,1722585039251,-75092.57040139,0.00019178,2]
[333869817,1722585039261,-7489.33,0.00019178,2]
[333869819,1722585039272,-698.11,0.00019178,2]
[333869821,1722585039283,-500.0,0.00019178,2]
[333869823,1722585039293,-1130.41,0.00019178,2]
[333869825,1722585039304,-500.0,0.00019178,2]
[333869827,1722585039314,-1018.65,0.00019178,2]
[333869829,1722585039325,-500.0,0.00019178,2]
[333869831,1722585039336,-6070.97,0.00019178,2]
[333869833,1722585039346,-500.0,0.00019178,2]
[333869835,1722585039357,-3009.5,0.00019178,2]
[333869837,1722585039369,-1120.13,0.00019178,2]
[333869839,1722585039379,-4356.44,0.00019178,2]
[333869842,1722585039390,-778.95,0.00019178,2]
[333869844,1722585039401,-500.0,0.00019178,2]
[333869846,1722585039411,-8917.98,0.00019178,2]
[333869848,1722585039422,-500.0,0.00019178,2]
[333869849,1722585039434,-24541.73,0.00019178,2]
[333869850,1722585039445,-605.47866053,0.00019178,2]
[333869851,1722585039456,-500.0,0.00019178,2]
[333869852,1722585039468,-500.0,0.00019178,2]
[333869853,1722585039479,-6906.19,0.00019178,2]
[333869854,1722585039497,-1265.62,0.00019178,2]
[333869855,1722585039508,-500.0,0.00019178,2]
[333869856,1722585039519,-500.0,0.00019178,2]
[333869857,1722585039532,-3218.09,0.00019178,2]
[333869858,1722585039543,-628.16,0.00019178,2]
[333869860,1722585039554,-500.0,0.00019178,2]
[333869862,1722585039566,-500.0,0.00019178,2]
[333869864,1722585039576,-1401.64,0.00019178,2]
[333869866,1722585039587,-1630.81,0.00019178,2]
[333869868,1722585039598,-709.36,0.00019178,2]
[333869870,1722585039609,-19506.4,0.00019178,2]
[333869872,1722585039619,-4091.02,0.00019178,2]
[333869874,1722585039630,-672.7,0.00019178,2]
[333869876,1722585039640,-565.88122229,0.00019178,2]
[333869878,1722585039651,-20767.27,0.00019178,2]
[333869880,1722585039662,-500.0,0.00019178,2]
[333869882,1722585039672,-3393.6,0.00019178,2]
[333869885,1722585039683,-942.94,0.00019178,2]
[333869887,1722585039693,-3481.28,0.00019178,2]
[333869889,1722585039704,-500.0,0.00019178,2]
[333869891,1722585039715,-500.0,0.00019178,2]
[333869893,1722585039726,-5028.82,0.00019178,2]
[333869895,1722585039738,-1036.38,0.00019178,2]
[333869897,1722585039750,-5405.76,0.00019178,2]
[333869900,1722585039762,-500.0,0.00019178,2]
[333869901,1722585039773,-722.74,0.00019178,2]
[333869904,1722585039785,-2906.71,0.00019178,2]
[333869906,1722585039796,-1831.09,0.00019178,2]
[333869908,1722585039807,-500.0,0.00019178,2]
[333869910,1722585039818,-5394.01,0.00019178,2]
[333869912,1722585039830,-759.49,0.00019178,2]
[333869915,1722585039843,-8893.78,0.00019178,2]
[333869917,1722585039855,-3660.36,0.00019178,2]
[333869919,1722585039866,-2999.59,0.00019178,2]
[333869921,1722585039877,-500.0,0.00019178,2]
[333869924,1722585039888,-500.0,0.00019178,2]
[333869926,1722585039898,-32963.18,0.00019178,2]
[333869928,1722585039910,-590.79,0.00019178,2]
[333869930,1722585039922,-500.0,0.00019178,2]
[333869932,1722585039933,-500.0,0.00019178,2]
[333869935,1722585039944,-500.0,0.00019178,2]
[333869937,1722585039955,-942.96,0.00019178,2]
[333869939,1722585039966,-3354.78,0.00019178,2]
[333869941,1722585039977,-500.0,0.00019178,2]
[333869943,1722585039987,-500.0,0.00019178,2]
[333869945,1722585039998,-500.0,0.00019178,2]
[333869947,1722585040008,-500.0,0.00019178,2]
[333869949,1722585040019,-540.23,0.00019178,2]
[333869952,1722585040034,-2689.74,0.00019178,2]
[333869954,1722585040045,-500.0,0.00019178,2]
[333869956,1722585040055,-634.36,0.00019178,2]
[333869958,1722585040065,-2175.41,0.00019178,2]
[333869960,1722585040078,-500.0,0.00019178,2]
[333869962,1722585040089,-3132.19,0.00019178,2]
[333869964,1722585040099,-4113.51,0.00019178,2]
[333869966,1722585040110,-1003.21,0.00019178,2]
[333869968,1722585040120,-500.0,0.00019178,2]
[333869970,1722585040131,-1003.88,0.00019178,2]
[333869972,1722585040142,-77596.28,0.00019178,2]
[333869975,1722585040155,-504.94,0.00019178,2]
[333869977,1722585040166,-500.0,0.00019178,2]
[333869979,1722585040177,-500.0,0.00019178,2]
[333869981,1722585040187,-328.09958751,0.00019178,2]
[333869983,1722585040198,-12262.87,0.00019178,2]
[333869985,1722585040209,-14172.16,0.00019178,2]
[333869987,1722585040220,-500.0,0.00019178,2]
[333869990,1722585040231,-14182.94,0.00019178,2]
[333869992,1722585040243,-735.51,0.00019178,2]
[333869994,1722585040254,-4049.11,0.00019178,2]
[333869996,1722585040266,-500.0,0.00019178,2]
[333869998,1722585040279,-3750.76,0.00019178,2]
[333870000,1722585040289,-3696.3,0.00019178,2]
[333870003,1722585040300,-1014.04,0.00019178,2]
[333870005,1722585040311,-5507.24,0.00019178,2]
[333870007,1722585040322,-8170.85,0.00019178,2]
[333870009,1722585040335,-8982.52,0.00019178,2]
[333870011,1722585040346,-586.74,0.00019178,2]
[333870013,1722585040357,-2673.6,0.00019178,2]
[333870016,1722585040369,-360.99412998,0.00019178,2]
[333870018,1722585040380,-500.0,0.00019178,2]
[333870020,1722585040391,-500.0,0.00019178,2]
[333870022,1722585040403,-500.0,0.00019178,2]
[333870024,1722585040413,-500.0,0.00019178,2]
[333870026,1722585040424,-500.0,0.00019178,2]
[333870028,1722585040434,-551.84,0.00019178,2]
[333870030,1722585040446,-5708.24,0.00019178,2]
[333870032,1722585040457,-500.0,0.00019178,2]
[333870035,1722585040468,-631.14,0.00019178,2]
[333870037,1722585040480,-500.0,0.00019178,2]
[333870039,1722585040494,-1472.9,0.00019178,2]
[333870041,1722585040505,-1447.15,0.00019178,2]
[333870043,1722585040517,-630.72,0.00019178,2]
[333870045,1722585040532,-578.19,0.00019178,2]
[333870048,1722585040542,-3884.58,0.00019178,2]
[333870050,1722585040553,-6409.39,0.00019178,2]
[333870052,1722585040566,-939.67,0.00019178,2]
[333870054,1722585040578,-4262.13,0.00019178,2]
[333870056,1722585040589,-500.0,0.00019178,2]
[333870058,1722585040602,-500.0,0.00019178,2]
[333870060,1722585040613,-16615.98,0.00019178,2]
[333870062,1722585040623,-500.0,0.00019178,2]
[333870064,1722585040635,-7592.3,0.00019178,2]
[333870066,1722585040647,-6996.68,0.00019178,2]
[333870068,1722585040658,-35189.14,0.00019178,2]
[333870070,1722585040669,-500.0,0.00019178,2]
[333870072,1722585040680,-500.0,0.00019178,2]
[333870074,1722585040691,-9052.45,0.00019178,2]
[333870076,1722585040702,-725.18,0.00019178,2]
[333870078,1722585040713,-1709.46,0.00019178,2]
[333870081,1722585040724,-3520.91,0.00019178,2]
[333870083,1722585040736,-2232.56,0.00019178,2]
[333870085,1722585040748,-500.0,0.00019178,2]
[333870087,1722585040760,-6717.65,0.00019178,2]
[333870089,1722585040775,-500.0,0.00019178,2]
[333870091,1722585040786,-1906.07,0.00019178,2]
[333870093,1722585040797,-1274.05,0.00019178,2]
[333870096,1722585040807,-500.0,0.00019178,2]
[333870098,1722585040819,-561.41,0.00019178,2]
[333870100,1722585040829,-846.6,0.00019178,2]
[333870102,1722585040840,-1864.26,0.00019178,2]
[333870104,1722585040852,-500.0,0.00019178,2]
[333870106,1722585040864,-500.0,0.00019178,2]
[333870108,1722585040875,-3161.78,0.00019178,2]
[333870110,1722585040888,-1956.79,0.00019178,2]
[333870113,1722585040901,-3947.44,0.00019178,2]
[333870115,1722585040912,-4071.27,0.00019178,2]
[333870117,1722585040924,-500.0,0.00019178,2]
[333870120,1722585040937,-500.0,0.00019178,2]
[333870122,1722585040950,-3021.65,0.00019178,2]
[333870124,1722585040961,-5730.75,0.00019178,2]
[333870127,1722585040972,-500.0,0.00019178,2]
[333870129,1722585040983,-523.29,0.00019178,2]
[333870131,1722585040994,-1821.59,0.00019178,2]
[333870133,1722585041005,-739.49,0.00019178,2]
[333870135,1722585041017,-627.84,0.00019178,2]
[333870137,1722585041028,-944.61,0.00019178,2]
[333870139,1722585041039,-1833.73,0.00019178,2]
[333870141,1722585041051,-500.0,0.00019178,2]
[333870143,1722585041063,-5387.78,0.00019178,2]
[333870146,1722585041073,-543.27,0.00019178,2]
[333870148,1722585041084,-500.0,0.00019178,2]
[333870150,1722585041095,-1755.28,0.00019178,2]
[333870152,1722585041106,-1788.36,0.00019178,2]
[333870154,1722585041117,-4696.45,0.00019178,2]
[333870157,1722585041128,-840.26,0.00019178,2]
[333870159,1722585041139,-5168.2,0.00019178,2]
[333870161,1722585041152,-500.0,0.00019178,2]
[333870163,1722585041165,-16487.26,0.00019178,2]
[333870166,1722585041176,-1106.1,0.00019178,2]
[333870168,1722585041187,-500.0,0.00019178,2]
[333870170,1722585041197,-500.0,0.00019178,2]
[333870172,1722585041210,-500.0,0.00019178,2]
[333870174,1722585041222,-3064.34,0.00019178,2]
[333870175,1722585041232,-1858.13,0.00019178,2]
[333870176,1722585041243,-500.0,0.00019178,2]
[333870177,1722585041256,-980.6,0.00019178,2]
[333870178,1722585041267,-2523.43,0.00019178,2]
[333870179,1722585041280,-1645.08,0.00019178,2]
[333870180,1722585041291,-30744.95,0.00019178,2]
[333870181,1722585041302,-5932.5,0.00019178,2]
[333870182,1722585041313,-1650.39,0.00019178,2]
[333870183,1722585041325,-500.0,0.00019178,2]
[333870184,1722585041336,-3295.16,0.00019178,2]
[333870185,1722585041346,-4321.43,0.00019178,2]
[333870186,1722585041357,-31628.14,0.00019178,2]
[333870263,1722585042545,-2674.15,0.00019178,2]
[333870270,1722585042595,-743.52,0.00019178,2]
[333870274,1722585042621,-500.0,0.00019178,2]
[333870278,1722585042648,-969.1,0.00019178,2]
[333870281,1722585042660,-500.0,0.00019178,2]
[333870283,1722585042671,-2271.65,0.00019178,2]
[333870285,1722585042680,-3002.41,0.00019178,2]
[333870287,1722585042689,-892.17,0.00019178,2]
[333870289,1722585042699,-3191.07,0.00019178,2]
[333870291,1722585042710,-500.0,0.00019178,2]
[333870293,1722585042719,-16073.66,0.00019178,2]
[333870296,1722585042729,-1907.55,0.00019178,2]
[333870298,1722585042740,-1005.2,0.00019178,2]
[333870300,1722585042750,-500.0,0.00019178,2]
[333870302,1722585042760,-500.0,0.00019178,2]
[333870304,1722585042770,-500.0,0.00019178,2]
[333870306,1722585042779,-799.03,0.00019178,2]
[333870308,1722585042788,-500.0,0.00019178,2]
[333870310,1722585042797,-500.0,0.00019178,2]
[333870312,1722585042806,-2734.49,0.00019178,2]
[333870314,1722585042817,-3749.75,0.00019178,2]
[333870316,1722585042826,-880.61,0.00019178,2]
[333870318,1722585042836,-5367.71,0.00019178,2]
[333870320,1722585042846,-5399.49,0.00019178,2]
[333870322,1722585042855,-3917.05,0.00019178,2]
[333870324,1722585042864,-500.0,0.00019178,2]
[333870326,1722585042874,-1869.37,0.00019178,2]
[333870328,1722585042883,-1851.62,0.00019178,2]
[333870330,1722585042892,-500.0,0.00019178,2]
[333870332,1722585042901,-1540.01,0.00019178,2]
[333870334,1722585042910,-2069.42,0.00019178,2]
[333870336,1722585042919,-863.61,0.00019178,2]
[333870338,1722585042927,-500.0,0.00019178,2]
[333870340,1722585042936,-40991.33,0.00019178,2]
[333870342,1722585042945,-500.0,0.00019178,2]
[333870344,1722585042954,-500.0,0.00019178,2]
[333870346,1722585042963,-931.16,0.00019178,2]
[333870348,1722585042973,-500.0,0.00019178,2]
[333870349,1722585042982,-500.0,0.00019178,2]
[333870351,1722585042991,-532.37,0.00019178,2]
[333870353,1722585043000,-6114.62,0.00019178,2]
[333870355,1722585043009,-8011.98,0.00019178,2]
[333870358,1722585043019,-2911.46,0.00019178,2]
[333870360,1722585043029,-500.0,0.00019178,2]
[333870361,1722585043039,-722.77,0.00019178,2]
[333870363,1722585043048,-15685.72,0.00019178,2]
[333870365,1722585043058,-5728.65,0.00019178,2]
[333870368,1722585043068,-12095.06,0.00019178,2]
[333870370,1722585043077,-500.0,0.00019178,2]
[333870371,1722585043087,-568.95,0.00019178,2]
[333870374,1722585043096,-4630.04,0.00019178,2]
[333870376,1722585043105,-500.0,0.00019178,2]
[333870378,1722585043115,-721.09,0.00019178,2]
[333870380,1722585043123,-972.4,0.00019178,2]
[333870382,1722585043132,-500.0,0.00019178,2]
[333870384,1722585043142,-500.0,0.00019178,2]
[333870386,1722585043151,-4677.06,0.00019178,2]
[333870388,1722585043161,-1021.97,0.00019178,2]
[333870390,1722585043170,-7314.75,0.00019178,2]
[333870393,1722585043179,-500.0,0.00019178,2]
[333870395,1722585043189,-506.84572196,0.00019178,2]
[333870397,1722585043199,-500.0,0.00019178,2]
[333870399,1722585043209,-500.0,0.00019178,2]
[333870401,1722585043218,-5201.44,0.00019178,2]
[333870403,1722585043229,-4692.44,0.00019178,2]
[333870405,1722585043239,-1175.79,0.00019178,2]
[333870407,1722585043249,-698.84,0.00019178,2]
[333870409,1722585043258,-632.94,0.00019178,2]
[333870411,1722585043267,-549.68,0.00019178,2]
[333870413,1722585043278,-500.0,0.00019178,2]
[333870415,1722585043287,-1947.56,0.00019178,2]
[333870418,1722585043297,-2004.86,0.00019178,2]
[333870420,1722585043307,-15282.27,0.00019178,2]
[333870422,1722585043317,-500.0,0.00019178,2]
[333870424,1722585043326,-3931.57,0.00019178,2]
[333870426,1722585043336,-500.0,0.00019178,2]
[333870428,1722585043346,-500.0,0.00019178,2]
[333870430,1722585043356,-1709.29,0.00019178,2]
[333870432,1722585043366,-3364.04,0.00019178,2]
[333870434,1722585043375,-500.0,0.00019178,2]
[333870436,1722585043385,-500.0,0.00019178,2]
[333870438,1722585043394,-5546.85,0.00019178,2]
[333870440,1722585043403,-500.0,0.00019178,2]
[333870442,1722585043415,-500.0,0.00019178,2]
[333870444,1722585043424,-1680.68,0.00019178,2]
[333870446,1722585043435,-2127.36,0.00019178,2]
[333870448,1722585043447,-500.0,0.00019178,2]
[333870450,1722585043456,-4258.64,0.00019178,2]
[333870452,1722585043466,-809.6,0.00019178,2]
[333870454,1722585043475,-500.0,0.00019178,2]
[333870456,1722585043486,-500.0,0.00019178,2]
[333870457,1722585043496,-24739.67,0.00019178,2]
[333870459,1722585043505,-3055.99,0.00019178,2]
[333870462,1722585043515,-1091.5,0.00019178,2]
[333870464,1722585043526,-1217.73,0.00019178,2]
[333870466,1722585043537,-500.0,0.00019178,2]
[333870468,1722585043546,-8232.15,0.00019178,2]
[333870470,1722585043556,-1356.09,0.00019178,2]
[333870472,1722585043567,-500.0,0.00019178,2]
[333870474,1722585043576,-5910.43,0.00019178,2]
[333870476,1722585043585,-1139.63,0.00019178,2]
[333870478,1722585043595,-4597.74,0.00019178,2]
[333870480,1722585043604,-4351.02,0.00019178,2]
[333870482,1722585043613,-9705.07,0.00019178,2]
[333870484,1722585043622,-9374.03,0.00019178,2]
[333870485,1722585043631,-500.0,0.00019178,2]
[333870486,1722585043642,-1246.91,0.00019178,2]
[333870487,1722585043652,-500.0,0.00019178,2]
[333870488,1722585043662,-3751.92,0.00019178,2]
[333870489,1722585043671,-753.97,0.00019178,2]
[333870490,1722585043681,-3335.94,0.00019178,2]
[333870491,1722585043690,-500.0,0.00019178,2]
[333870492,1722585043701,-737.84,0.00019178,2]
[333870494,1722585043712,-261.40190932,0.00019178,2]
[333870496,1722585043723,-30430.24,0.00019178,2]
[333870498,1722585043732,-1026.09,0.00019178,2]
[333870500,1722585043742,-4529.53,0.00019178,2]
[333870502,1722585043751,-366.456251,0.00019178,2]
[333870504,1722585043760,-500.0,0.00019178,2]
[333870506,1722585043770,-1239.84,0.00019178,2]
[333870508,1722585043784,-2554.49,0.00019178,2]
[333870510,1722585043793,-2521.96,0.00019178,2]
[333870512,1722585043803,-244.87911643,0.00019178,2]
[333870514,1722585043812,-500.0,0.00019178,2]
[333870516,1722585043821,-500.0,0.00019178,2]
[333870518,1722585043830,-819.98,0.00019178,2]
[333870520,1722585043839,-786.7,0.00019178,2]
[333870522,1722585043848,-3022.76,0.00019178,2]
[333870523,1722585043858,-1444.59,0.00019178,2]
[333870525,1722585043867,-500.0,0.00019178,2]
[333870527,1722585043877,-5570.77,0.00019178,2]
[333870529,1722585043886,-500.0,0.00019178,2]
[333870531,1722585043895,-505.71,0.00019178,2]
[333870532,1722585043904,-4757.33,0.00019178,2]
[333870534,1722585043914,-500.0,0.00019178,2]
[333870536,1722585043923,-2593.09,0.00019178,2]
[333870538,1722585043932,-2593.09,0.00019178,2]
[333870540,1722585043941,-2593.09,0.00019178,2]
[333870541,1722585043951,-2593.09,0.00019178,2]
[333870543,1722585043960,-2593.09,0.00019178,2]
[333870545,1722585043970,-500.0,0.00019178,2]
[333870547,1722585043979,-2593.09,0.00019178,2]
[333870549,1722585043988,-10616.8,0.00019178,2]
[333870551,1722585043998,-2593.09,0.00019178,2]
[333870553,1722585044008,-5701.47,0.00019178,2]
[333870555,1722585044017,-1885.53,0.00019178,2]
[333870557,1722585044029,-2593.09,0.00019178,2]
[333870558,1722585044038,-2593.09,0.00019178,2]
[333870560,1722585044047,-2731.78,0.00019178,2]
[333870562,1722585044057,-2593.09,0.00019178,2]
[333870564,1722585044066,-2593.09,0.00019178,2]
[333870566,1722585044075,-2593.09,0.00019178,2]
[333870568,1722585044086,-2593.09,0.00019178,2]
[333870569,1722585044095,-2593.09,0.00019178,2]
[333870571,1722585044104,-2593.09,0.00019178,2]
[333870573,1722585044114,-2593.09,0.00019178,2]
[333870575,1722585044123,-2154.84,0.00019178,2]
[333870577,1722585044132,-2593.09,0.00019178,2]
[333870579,1722585044141,-2593.09,0.00019178,2]
[333870581,1722585044150,-2593.09,0.00019178,2]
[333870583,1722585044159,-2083.27,0.00019178,2]
[333870585,1722585044168,-11213.93081081,0.00019178,2]
[333870589,1722585044203,-1783.70918919,0.00019178,2]
[333870590,1722585044212,-2593.09,0.00019178,2]
[333870592,1722585044222,-937.42485706,0.00019178,2]
[333870594,1722585044233,-1655.66514294,0.00019178,2]
[333870596,1722585044243,-1404.03,0.00019178,2]
[333870598,1722585044252,-1031.02,0.00019178,2]
[333870599,1722585044261,-2593.09,0.00019178,2]
[333870601,1722585044270,-1649.04,0.00019178,2]
[333870603,1722585044282,-2593.09,0.00019178,2]
[333870605,1722585044291,-2593.32041431,0.00019178,2]
[333870607,1722585044301,-500.0,0.00019178,2]
[333870609,1722585044310,-237.37927856,0.00019178,2]
[333870611,1722585044319,-913.38,0.00019178,2]
[333870613,1722585044329,-613.63,0.00019178,2]
[333870615,1722585044339,-500.0,0.00019178,2]
[333870617,1722585044348,-5972.76846083,0.00019178,2]
[333870619,1722585044359,-2000.0,0.00019178,2]
[333870621,1722585044370,-1178.52153917,0.00019178,2]
[333870623,1722585044380,-12733.81,0.00019178,2]
[333870625,1722585044390,-3183.96,0.00019178,2]
[333870626,1722585044399,-6390.61,0.00019178,2]